bitfinex-derivatives/quotes_ETHF0:USTF0_20260213
["timestamp","ask_amount","ask_price","bid_price","bid_amount"]
[1771000875597,0.57162202,2063.9,2062.5,0.54217631]
[1771000876091,0.57162202,2063.7,2062.5,0.54217631]
[1771000876291,0.57162202,2063.7,2062.4,0.00366222]
[1771000876292,0.57162202,2063.3,2062.4,0.00366222]
[1771000876692,0.57162202,2063.3,2062.4,0.54583853]
[1771000877791,0.57162202,2063.8,2062.6,0.54217631]
[1771000877998,0.57162202,2064.2,2063.0,0.54217631]
[1771000878188,0.57162202,2064.2,2063.2,0.54217631]
[1771000880696,0.57162202,2064.2,2063.0,0.54217631]
[1771000881797,0.57162202,2064.0,2062.8,0.54217631]
[1771000881995,0.57162202,2064.0,2062.5,0.54217631]
[1771000882298,0.57162202,2063.8,2062.5,0.54217631]
[1771000882498,0.57162202,2063.4,2062.4,0.00366222]
[1771000883899,0.57162202,2063.2,2062.4,0.00366222]
[1771000884492,0.57162202,2062.8,2061.5,0.54217631]
[1771000884797,2.53851031,2063.1,2061.5,0.54217631]
[1771000884798,0.57162202,2062.6,2061.5,0.54217631]
[1771000885397,0.57722063,2062.6,2061.5,0.54680655]
[1771000885599,0.57722063,2062.6,2061.7,0.54217631]
[1771000885600,0.00559861,2062.6,2061.7,0.54217631]
[1771000886301,0.57722063,2062.6,2061.5,0.54680655]
[1771000886800,0.00559861,2062.6,2061.7,0.54217631]
[1771000886994,0.00559861,2062.6,2061.7,3.34871958]
[1771000887195,0.57722063,2062.6,2061.8,0.54217631]
[1771000887392,0.57722063,2062.6,2061.5,0.54680655]
[1771000887999,0.57722063,2062.6,2061.6,0.54217631]
[1771000888200,0.00559861,2062.6,2061.6,0.54217631]
[1771000888794,0.57722063,2062.6,2061.6,0.54217631]
[1771000890996,0.57722063,2062.6,2061.5,0.00463024]
[1771000891396,0.57722063,2062.6,2061.5,0.56485003]
[1771000891593,0.57722063,2062.6,2061.5,0.00463024]
[1771000891998,0.57722063,2062.6,2061.5,0.56485003]
[1771000892200,0.57722063,2062.6,2061.5,0.00463024]
[1771000894800,0.57722063,2062.6,2061.5,0.56485003]
[1771000895103,0.56265736,2062.5,2061.5,0.56485003]
[1771000895804,0.56265736,2062.5,2061.5,0.00463024]
[1771000896206,0.56265736,2062.5,2061.5,0.56485003]
[1771000896405,0.00559861,2062.6,2061.7,0.56021979]
[1771000896606,0.56825597,2062.6,2061.7,0.56021979]
[1771000898201,0.00559861,2062.6,2061.7,0.56021979]
[1771000898803,0.00559861,2062.6,2061.9,0.57952179]
[1771000899206,0.53400325,2063.0,2062.1,0.57952179]
[1771000900199,0.53879837,2063.0,2062.1,0.57952179]
[1771000901206,0.00479512,2063.0,2062.1,0.57952179]
[1771000905410,0.53879837,2063.0,2062.1,0.57952179]
[1771000907011,0.00479512,2063.0,2062.1,0.57952179]
[1771000907314,0.00479512,2063.0,2062.3,0.57952179]
[1771000907811,0.53879837,2063.0,2062.3,0.57952179]
[1771000908005,0.00479512,2063.0,2062.3,0.57952179]
[1771000910614,0.53879837,2063.0,2062.3,0.57952179]
[1771000912204,0.53879837,2063.0,2062.0,2.80654327]
[1771000912410,0.53400325,2062.8,2061.9,0.57952179]
[1771000913015,0.53879837,2063.0,2061.9,0.57952179]
[1771000913214,0.53879837,2063.0,2062.0,0.82213179]
[1771000913411,0.53879837,2063.0,2062.1,0.57952179]
[1771000914917,0.53879837,2063.0,2061.9,0.57952179]
[1771000916312,0.53879837,2063.0,2062.0,0.57952179]
[1771000922013,0.53879837,2063.0,2061.9,0.24262]
[1771000922214,0.53879837,2063.0,2062.0,0.58548767]
[1771000922622,0.54986296,2062.9,2061.8,0.58548767]
[1771000924021,0.54986296,2062.9,2061.7,0.58548767]
[1771000925117,0.54986296,2062.9,2061.9,0.58548767]
[1771000925420,0.54986296,2062.8,2061.8,0.58548767]
[1771000925620,0.54986296,2062.8,2061.6,0.58548767]
[1771000925819,0.54986296,2062.7,2061.6,0.58548767]
[1771000926118,0.54986296,2062.7,2061.6,3.39203094]
[1771000926320,0.54986296,2062.7,2061.7,0.58548767]
[1771000926621,0.54986296,2062.7,2061.5,3.39666118]
[1771000926822,0.54986296,2062.7,2061.6,0.58548767]
[1771000927720,0.54986296,2062.6,2061.5,0.00463024]
[1771000928018,0.54986296,2062.5,2061.5,0.00463024]
[1771000928220,3.43172309,2062.5,2061.5,0.00463024]
[1771000928514,0.54986296,2062.4,2061.5,0.00463024]
[1771000929115,0.54986296,2062.5,2061.6,0.58548767]
[1771000929512,0.54986296,2062.5,2061.5,2.81117351]
[1771000929720,0.54986296,2062.5,2061.5,0.00463024]
[1771000930822,0.54986296,2062.5,2061.5,0.59011791]
[1771000933217,0.54986296,2062.5,2061.5,0.00463024]
[1771000933422,0.54986296,2062.4,2061.5,0.00463024]
[1771000934022,0.54986296,2062.4,2061.5,0.59011791]
[1771000934822,0.54986296,2062.4,2061.5,0.00463024]
[1771000936721,0.54986296,2062.2,2061.0,0.58548767]
[1771000937231,0.54986296,2062.1,2061.0,0.58548767]
[1771000937426,0.54986296,2061.9,2060.7,0.58548767]
[1771000937729,0.54986296,2061.9,2060.7,0.59035919]
[1771000938029,0.54986296,2061.7,2060.7,0.59035919]
[1771000938229,4.67586296,2061.6,2060.7,0.59035919]
[1771000938430,0.54986296,2061.5,2060.7,0.59035919]
[1771000938623,0.55539656,2061.5,2060.7,0.00487152]
[1771000939226,0.55539656,2061.5,2060.7,0.59035919]
[1771000940324,0.0055336,2061.5,2060.7,0.59035919]
[1771000940822,0.54986296,2061.9,2060.7,0.59035919]
[1771000941820,0.55465902,2061.9,2060.7,0.59035919]
[1771000942426,0.54986296,2061.8,2060.7,0.59035919]
[1771000945735,0.55465902,2061.9,2060.9,0.58548767]
[1771000947335,0.00479606,2061.9,2061.1,0.58548767]
[1771000948232,0.00479606,2061.9,2061.2,0.58548767]
[1771000949234,0.55465902,2061.9,2061.0,0.58548767]
[1771000949940,0.00479606,2061.9,2061.0,0.58548767]
[1771000950139,0.00479606,2061.9,2061.1,0.82820767]
[1771000950343,0.54986296,2062.6,2061.6,0.58548767]
[1771000951443,0.55497717,2062.6,2061.6,0.58548767]
[1771000953447,0.00511421,2062.6,2061.8,0.54652686]
[1771000953835,0.55754961,2062.5,2061.6,3.35307013]
[1771000954039,0.55754961,2062.5,2061.6,0.54652686]
[1771000954839,0.55754961,2062.5,2061.4,0.54652686]
[1771000955745,0.55754961,2062.4,2061.4,0.54652686]
[1771000955940,0.55754961,2062.4,2061.3,0.54652686]
[1771000956445,0.55754961,2062.4,2061.1,0.54652686]
[1771000958146,0.55266948,2062.2,2061.1,0.54652686]
[1771000959648,0.55266948,2062.2,2061.2,0.53360106]
[1771000961450,0.55266948,2061.8,2060.8,0.53360106]
[1771000961749,4.107,2061.7,2060.7,0.53847258]
[1771000962043,0.55266948,2061.6,2060.7,0.53847258]
[1771000965955,0.55266948,2061.6,2060.7,0.00487152]
[1771000966155,0.55266948,2061.6,2060.7,0.53847258]
[1771000968257,0.55266948,2061.8,2060.7,0.53847258]
[1771000971859,0.55266948,2061.8,2060.9,0.53360106]
[1771000972550,0.55266948,2062.1,2060.9,0.53360106]
[1771000972754,0.55266948,2062.3,2061.1,0.53360106]
[1771000973358,0.55266948,2062.3,2061.3,0.53360106]
[1771000974157,0.55266948,2062.3,2061.1,0.53360106]
[1771000974960,0.55266948,2062.3,2061.2,0.53360106]
[1771000976360,0.55266948,2062.3,2061.4,0.53360106]
[1771000980159,0.55266948,2062.3,2061.0,0.53360106]
[1771000980459,0.55266948,2062.1,2061.0,0.53360106]
[1771000982565,0.57366205,2062.4,2061.3,0.24269]
[1771000982870,0.57877626,2062.6,2061.6,0.5693373]
[1771000983370,0.00511421,2062.6,2061.8,0.5693373]
[1771000984876,0.57877626,2062.6,2061.8,0.5693373]
[1771000985762,0.00511421,2062.6,2061.8,0.5693373]
[1771000987272,0.57877626,2062.6,2061.8,0.5693373]
[1771000988478,0.00511421,2062.6,2061.8,0.5693373]
[1771000989167,0.57877626,2062.6,2061.8,0.5693373]
[1771000990071,0.57877626,2062.6,2061.6,0.5693373]
[1771000990276,0.57366205,2062.2,2061.3,0.5693373]
[1771000990477,0.57366205,2062.4,2061.4,0.5693373]
[1771000991176,0.57366205,2062.4,2061.6,0.5693373]
[1771000991377,0.57877626,2062.6,2061.6,0.5693373]
[1771000991776,0.00511421,2062.6,2061.8,0.5693373]
[1771000994279,0.57877626,2062.6,2061.8,0.5693373]
[1771000995083,0.00511421,2062.6,2061.8,0.5693373]
[1771000995385,4.30747,2063.3,2062.0,0.5693373]
[1771000995386,0.57366205,2063.0,2062.0,0.5693373]
[1771000995781,0.57366205,2063.0,2061.3,15.67338813]
[1771000995782,0.57366205,2062.8,2061.6,0.5693373]
[1771000996080,0.57366205,2062.8,2061.7,0.5693373]
[1771000996281,0.57994264,2062.8,2061.7,0.5693373]
[1771000996877,0.57994264,2062.8,2061.9,0.5693373]
[1771000997279,0.00628059,2062.8,2061.9,0.5693373]
[1771000997479,0.57366205,2063.7,2062.3,0.5693373]
[1771000997677,0.57366205,2063.7,2062.5,0.5693373]
[1771000997880,0.57366205,2063.7,2062.7,0.5693373]
[1771000998286,0.57366205,2064.2,2062.9,0.5693373]
[1771000998789,0.57928818,2064.2,2062.9,0.57390585]
[1771000999185,0.57366205,2064.0,2062.9,0.00456855]
[1771000999382,0.57366205,2063.8,2062.9,0.00456855]
[1771000999782,0.57366205,2063.8,2062.9,0.57390585]
[1771000999987,0.57366205,2063.8,2062.9,0.00456855]
[1771001000188,0.57366205,2063.8,2062.6,0.5693373]
[1771001001280,0.57366205,2063.8,2062.6,0.57356006]
[1771001005985,0.57366205,2064.1,2062.6,0.57356006]
[1771001006187,0.57366205,2064.1,2062.8,0.5693373]
[1771001006487,0.57366205,2064.1,2063.0,0.5693373]
[1771001007487,0.57366205,2064.1,2062.7,0.5693373]
[1771001007686,0.57366205,2063.9,2062.7,0.5693373]
[1771001009389,0.57366205,2063.9,2062.8,0.24252]
[1771001009593,0.57366205,2063.9,2062.9,0.5693373]
[1771001009889,0.57366205,2063.9,2062.6,0.57356006]
[1771001010087,0.57366205,2063.8,2062.6,0.57356006]
[1771001011693,0.57366205,2063.8,2062.7,0.56969122]
[1771001013189,0.57366205,2063.8,2062.9,0.56969122]
[1771001013496,0.5,2063.9,2063.1,0.56969122]
[1771001014894,0.5745496,2064.2,2063.3,0.31809757]
[1771001015394,0.56892347,2065.0,2063.7,0.31483592]
[1771001016199,0.57399988,2065.0,2063.8,0.2424]
[1771001016394,0.57399988,2065.0,2063.9,0.31483592]
[1771001019998,0.57399988,2065.0,2063.7,4.39342639]
[1771001020702,0.57399988,2065.0,2063.7,0.30442639]
[1771001021394,0.57399988,2065.0,2064.0,0.29038043]
[1771001021699,0.57399988,2065.0,2063.9,0.24239]
[1771001022099,0.57399988,2065.0,2063.9,0.53277043]
[1771001023106,0.57399988,2065.0,2064.0,0.29038043]
[1771001023903,0.57399988,2065.0,2064.2,0.2891043]
[1771001024104,0.57399988,2065.0,2064.2,0.29384594]
[1771001024705,0.00507641,2065.0,2064.4,0.2891043]
[1771001024902,0.56377263,2065.7,2064.7,0.2891043]
[1771001025205,0.56377263,2066.3,2065.0,0.52946771]
[1771001025407,2.89250437,2067.1,2065.9,0.24215]
[1771001025602,0.56377263,2067.2,2066.0,0.52946771]
[1771001025801,0.56377263,2067.0,2066.0,0.0042017]
[1771001027611,0.56377263,2067.0,2066.0,0.53366941]
[1771001028211,0.56377263,2067.0,2066.1,0.52946771]
[1771001028411,0.56377263,2067.0,2066.0,0.0042017]
[1771001029618,0.56893511,2067.2,2066.0,0.53366941]
[1771001030018,0.56893511,2067.2,2066.0,0.0042017]
[1771001030318,0.56377263,2067.0,2066.0,0.0042017]
[1771001030520,0.56377263,2066.9,2066.0,0.53366941]
[1771001031118,0.56377263,2066.9,2066.0,0.0042017]
[1771001032723,0.56377263,2066.9,2066.0,0.53366941]
[1771001032926,0.56377263,2066.9,2065.5,0.52946771]
[1771001033125,0.56377263,2066.7,2065.5,0.52946771]
[1771001033323,0.56377263,2066.7,2065.3,0.52946771]
[1771001033625,0.24205,2066.8,2064.8,0.52946771]
[1771001033626,0.56377263,2066.3,2064.8,0.52946771]
[1771001033927,0.56377263,2066.1,2064.8,0.00539805]
[1771001034823,0.56377263,2065.9,2064.8,0.00539805]
[1771001035026,0.56377263,2065.7,2064.8,0.00539805]
[1771001035324,0.56377263,2065.7,2064.4,0.52946771]
[1771001035524,0.56377263,2065.7,2064.2,0.52946771]
[1771001035915,0.56377263,2065.3,2063.8,0.52946771]
[1771001036124,0.56377263,2065.2,2063.8,0.53565749]
[1771001037026,0.56377263,2065.0,2063.8,0.00618978]
[1771001037919,0.56377263,2065.0,2063.8,0.53565749]
[1771001038622,0.56377263,2065.0,2063.8,0.00618978]
[1771001038821,0.56377263,2065.0,2063.9,0.52946771]
[1771001039228,0.56377263,2064.8,2063.8,0.00618978]
[1771001039523,0.56377263,2064.8,2063.8,0.53565749]
[1771001040126,0.56377263,2065.2,2063.8,0.53565749]
[1771001044824,0.52995319,2065.0,2063.8,0.53565749]
[1771001045427,0.52995319,2064.8,2063.8,0.00618978]
[1771001046027,0.52995319,2064.6,2063.8,0.00618978]
[1771001046440,0.24229,2064.7,2063.2,0.55533422]
[1771001046441,0.52995319,2064.4,2063.2,0.55533422]
[1771001047435,0.52995319,2064.4,2063.2,0.5592875]
[1771001048730,0.52995319,2064.2,2063.2,0.00395328]
[1771001050431,0.52995319,2064.0,2063.2,0.00395328]
[1771001053738,0.52995319,2063.8,2062.8,0.55533422]
[1771001054934,0.53592317,2063.8,2062.8,0.55880148]
[1771001056735,0.52995319,2063.7,2062.8,0.55880148]
[1771001057532,0.00596998,2063.8,2062.8,0.55880148]
[1771001057737,0.00596998,2063.8,2063.0,0.55533422]
[1771001057931,0.52995319,2064.1,2063.2,0.55533422]
[1771001058336,0.52995319,2064.3,2063.4,0.55533422]
[1771001058738,0.52995319,2064.9,2063.6,0.55533422]
[1771001058938,0.53382866,2064.9,2063.8,0.55533422]
[1771001062339,0.00387547,2064.9,2064.2,0.55533422]
[1771001063342,0.53382866,2064.9,2064.2,0.55533422]
[1771001063738,0.53382866,2064.9,2063.9,0.55533422]
[1771001064050,0.53382866,2064.9,2063.7,0.55533422]
[1771001065643,0.52995319,2064.7,2063.3,2.78576558]
[1771001065844,0.52995319,2064.7,2063.2,0.55533422]
[1771001066040,0.52995319,2064.4,2063.2,0.55533422]
[1771001066641,0.52995319,2064.6,2063.4,0.55533422]
[1771001066840,0.52995319,2064.6,2063.5,0.55533422]
[1771001070139,0.52995319,2064.6,2063.3,3.5835598]
[1771001070541,0.52995319,2064.6,2063.3,0.55533422]
[1771001070742,0.56105716,2064.5,2063.3,0.55533422]
[1771001072942,0.56105716,2064.5,2063.2,2.78576558]
[1771001073453,0.56105716,2064.5,2063.3,0.57627502]
[1771001075141,0.56105716,2064.5,2063.4,0.57627502]
[1771001076851,0.56105716,2064.5,2063.3,3.34965167]
[1771001077052,0.56105716,2064.5,2063.4,0.56388609]
[1771001077750,0.56105716,2064.5,2063.5,0.56388609]
[1771001081156,0.56105716,2064.5,2063.3,3.34965167]
[1771001081353,0.56105716,2064.5,2063.4,0.56388609]
[1771001082159,0.5845723,2064.3,2063.4,0.56388609]
[1771001082358,0.5845723,2064.3,2063.2,3.34965167]
[1771001082553,0.5845723,2064.0,2063.0,3.34965167]
[1771001082748,0.5845723,2064.0,2063.0,0.56388609]
[1771001083555,0.5845723,2063.8,2062.8,0.56735335]
[1771001083756,2.5384792,2064.0,2062.8,0.56735335]
[1771001083757,0.5845723,2063.6,2062.8,0.56735335]
[1771001084658,0.5845723,2063.8,2062.9,0.56388609]
[1771001084864,0.5845723,2064.1,2063.1,0.56388609]
[1771001086855,0.5845723,2063.9,2062.9,0.56388609]
[1771001088264,0.5845723,2064.1,2063.1,0.56388609]
[1771001088556,0.5845723,2064.1,2063.2,0.56388609]
[1771001089154,0.5845723,2064.1,2063.3,0.56388609]
[1771001089360,0.5845723,2064.5,2063.4,3.34965167]
[1771001089553,0.5845723,2064.5,2063.6,0.56388609]
[1771001089758,0.5845723,2064.5,2063.7,0.56388609]
[1771001089958,0.5845723,2064.8,2063.7,0.56388609]
[1771001090354,0.5845723,2064.8,2063.8,0.56388609]
[1771001091367,0.5845723,2064.8,2063.9,0.56388609]
[1771001092766,0.5845723,2064.8,2063.7,0.56388609]
[1771001093966,0.5845723,2064.8,2063.8,0.56388609]
[1771001094162,0.5845723,2064.8,2064.1,0.56388609]
[1771001094862,0.00387547,2064.9,2064.1,0.56388609]
[1771001095171,0.00387547,2064.9,2064.3,0.56388609]
[1771001095364,0.00387547,2064.9,2064.3,0.56830878]
[1771001096473,0.58844777,2064.9,2064.3,0.56830878]
[1771001097078,0.58844777,2064.9,2064.3,0.00442269]
[1771001097265,0.58844777,2064.9,2064.3,0.56830878]
[1771001097469,0.00387547,2064.9,2064.3,0.56830878]
[1771001098971,0.5845723,2065.2,2064.4,0.56388609]
[1771001100080,0.58909423,2065.2,2064.4,0.56388609]
[1771001100280,10.186,2065.8,2064.6,0.56388609]
[1771001100281,0.5845723,2065.5,2064.6,0.56388609]
[1771001101085,0.56672009,2065.7,2064.6,0.56388609]
[1771001101283,0.57017742,2065.7,2064.6,0.56388609]
[1771001101884,0.56672009,2065.6,2064.8,0.54476798]
[1771001102074,0.56672009,2065.6,2064.7,0.54476798]
[1771001102686,0.56672009,2065.6,2064.4,0.54476798]
[1771001103077,0.56672009,2065.4,2064.3,0.00442269]
[1771001103482,0.56672009,2065.4,2064.3,0.54919067]
[1771001104974,0.56672009,2065.2,2064.3,0.54919067]
[1771001105181,0.56672009,2065.0,2064.3,0.00442269]
[1771001105583,0.56672009,2064.8,2063.8,0.54476798]
[1771001106479,47.39627081,2065.5,2064.0,0.54476798]
[1771001106480,0.56672009,2065.2,2064.0,0.54476798]
[1771001106788,0.56672009,2065.2,2064.2,0.54476798]
[1771001107089,0.56672009,2065.6,2064.6,0.54476798]
[1771001107492,0.00345733,2065.7,2064.6,0.54476798]
[1771001107692,0.56672009,2065.6,2064.6,0.54476798]
[1771001108988,0.57017742,2065.7,2064.6,0.54476798]
[1771001109393,0.56672009,2065.5,2064.6,0.54476798]
[1771001109697,0.56672009,2065.5,2064.4,0.54476798]
[1771001110390,0.56672009,2065.3,2064.4,0.54476798]
[1771001110599,0.56672009,2065.2,2064.2,0.54476798]
[1771001113194,0.56672009,2065.4,2064.3,0.54476798]
[1771001115985,0.56672009,2065.4,2064.4,0.54476798]
[1771001116385,0.66672009,2065.6,2064.6,0.54476798]
[1771001117383,0.66672009,2065.6,2064.4,0.54476798]
[1771001117586,0.56672009,2065.4,2064.4,0.54476798]
[1771001117995,0.56672009,2065.2,2064.2,0.54476798]
[1771001118189,0.56672009,2065.2,2064.0,3.34989505]
[1771001118685,0.24225,2065.1,2064.0,3.34989505]
[1771001118889,0.56672009,2065.0,2063.8,3.35585743]
[1771001119189,4.26425,2065.1,2063.8,0.55073036]
[1771001119190,0.56672009,2064.8,2063.8,0.55073036]
[1771001121496,0.56672009,2064.6,2063.3,0.54476798]
[1771001122197,0.56672009,2064.6,2063.1,2.80512707]
[1771001122198,0.56672009,2064.4,2063.1,0.54476798]
[1771001122398,0.56672009,2064.2,2063.1,0.54992886]
[1771001122597,0.57272654,2064.2,2063.1,0.54992886]
[1771001123193,0.57272654,2064.2,2063.1,0.00516088]
[1771001123594,0.56672009,2064.0,2063.1,0.00516088]
[1771001124100,0.56672009,2064.0,2063.1,0.54992886]
[1771001125408,0.00600645,2064.2,2063.1,0.54992886]
[1771001125409,0.57272654,2064.2,2063.1,0.54992886]
[1771001125601,0.00600645,2064.2,2063.4,0.54476798]
[1771001125806,0.56672009,2064.6,2063.6,0.54476798]
[1771001126103,0.56672009,2064.8,2063.8,0.54476798]
[1771001126706,0.56672009,2064.8,2063.5,0.54476798]
[1771001126707,0.56672009,2064.7,2063.5,0.54476798]
[1771001126905,0.56672009,2064.5,2063.5,0.54476798]
[1771001127105,0.56672009,2064.5,2063.1,0.54992886]
[1771001127709,0.00342786,2064.7,2063.1,0.54992886]
[1771001127710,0.56672009,2064.3,2063.1,0.54992886]
[1771001128309,0.56672009,2064.1,2063.1,0.00516088]
[1771001128510,0.56672009,2063.9,2063.1,0.54992886]
[1771001128706,0.56672009,2063.9,2063.1,0.00516088]
[1771001129399,0.56672009,2063.9,2062.7,0.54476798]
[1771001129603,0.56672009,2063.7,2062.7,0.54476798]
[1771001129804,0.56672009,2063.7,2062.3,0.54476798]
[1771001130401,0.56672009,2063.7,2062.4,0.54476798]
[1771001132618,0.56672009,2063.7,2062.6,0.56502556]
[1771001132806,4.59527901,2063.9,2062.8,0.56502556]
[1771001133207,0.57227901,2063.8,2062.8,0.56502556]
[1771001134610,0.57227901,2064.2,2062.8,0.56502556]
[1771001135815,0.57227901,2064.2,2063.0,0.56502556]
[1771001136015,0.00342786,2064.7,2063.2,0.56502556]
[1771001136308,0.57227901,2064.6,2063.4,0.56502556]
[1771001136507,0.57570687,2064.7,2063.4,0.56502556]
[1771001136702,0.57570687,2064.7,2063.6,0.56502556]
[1771001139407,0.57889274,2064.5,2063.4,0.55621133]
[1771001139614,0.57889274,2064.5,2063.2,0.55621133]
[1771001140620,0.57889274,2064.3,2063.0,0.55621133]
[1771001143008,0.57889274,2064.3,2063.1,0.24248]
[1771001143322,0.57889274,2064.3,2063.2,0.55621133]
[1771001144211,0.57889274,2064.3,2063.3,0.55621133]
[1771001145321,0.57889274,2064.3,2063.4,0.55621133]
[1771001145722,0.5823206,2064.7,2063.6,0.55621133]
[1771001145925,0.5823206,2064.7,2063.7,0.55621133]
[1771001147125,0.5823206,2064.7,2063.8,0.55621133]
[1771001147326,0.5823206,2064.7,2063.8,0.56126301]
[1771001148015,0.00342786,2064.7,2064.0,0.55621133]
[1771001148224,0.57889274,2065.5,2064.3,0.24234]
[1771001148528,0.57889274,2065.5,2064.5,0.55621133]
[1771001148822,0.57889274,2065.5,2064.6,0.55621133]
[1771001149326,0.5842228,2065.5,2064.6,0.55621133]
[1771001150920,0.00533006,2065.5,2064.6,0.55621133]
[1771001151118,0.00533006,2065.5,2064.8,0.55621133]
[1771001151934,0.5842228,2065.5,2064.8,0.55621133]
[1771001152831,0.00533006,2065.5,2064.8,0.55621133]
[1771001153730,0.5842228,2065.5,2064.8,0.55621133]
[1771001154533,0.5842228,2065.5,2064.5,0.55621133]
[1771001158324,0.5842228,2065.5,2064.1,0.55621133]
[1771001158926,0.57889274,2065.3,2064.1,0.55621133]
[1771001160234,0.57889274,2065.3,2064.2,0.55621133]
[1771001161132,0.57889274,2065.3,2064.4,0.55518984]
[1771001161333,0.56713072,2065.5,2064.6,0.55518984]
[1771001161831,0.56180066,2065.4,2064.1,0.55518984]
[1771001162128,0.56180066,2065.4,2063.8,5.59208981]
[1771001162129,0.56180066,2065.2,2063.8,0.56024152]
[1771001162829,0.56180066,2065.0,2063.8,0.56024152]
[1771001163230,0.56180066,2065.0,2064.0,0.55518984]
[1771001164432,0.56180066,2065.0,2064.2,0.55518984]
[1771001165234,0.00533006,2065.5,2064.2,0.55518984]
[1771001165235,0.56180066,2065.2,2064.2,0.55518984]
[1771001165536,0.1,2065.6,2065.0,0.55518984]
[1771001165737,0.02245645,2065.6,2065.0,0.55518984]
[1771001166335,0.58425711,2065.6,2065.0,0.55518984]
[1771001166534,0.02726511,2065.6,2065.0,0.55518984]
[1771001166932,0.58906577,2065.6,2065.0,0.55518984]
[1771001167141,0.02726511,2065.6,2065.0,0.55518984]
[1771001168530,0.58906577,2065.6,2065.0,0.55518984]
[1771001169134,0.02726511,2065.6,2065.0,0.55518984]
[1771001169339,4.022,2066.5,2065.0,0.55518984]
[1771001169340,0.56180066,2066.1,2065.2,0.55518984]
[1771001169536,0.56180066,2066.1,2065.0,0.55518984]
[1771001169734,0.56180066,2066.1,2064.8,0.55518984]
[1771001169934,0.56180066,2065.9,2064.8,0.55518984]
[1771001170741,0.56673927,2065.9,2064.8,0.55518984]
[1771001170943,0.56180066,2065.8,2064.5,0.55518984]
[1771001173243,0.56180066,2065.8,2064.6,0.55518984]
[1771001175346,2.53873843,2065.9,2064.3,2.80512707]
[1771001175347,0.56180066,2065.5,2064.3,2.80512707]
[1771001175544,0.56180066,2065.5,2064.1,3.36031691]
[1771001175848,0.56180066,2065.5,2064.1,0.55518984]
[1771001176054,0.56180066,2065.3,2064.1,0.55518984]
[1771001176244,0.56180066,2064.9,2063.9,0.55518984]
[1771001176445,0.56180066,2064.8,2063.8,0.56024152]
[1771001177449,0.56180066,2064.8,2063.9,0.55518984]
[1771001177649,0.56180066,2065.2,2063.9,0.55518984]
[1771001177847,0.56180066,2065.2,2064.1,0.55518984]
[1771001178249,0.56180066,2065.2,2064.2,0.55518984]
[1771001179654,0.56180066,2065.2,2064.3,0.55518984]
[1771001180052,0.56180066,2065.2,2064.1,0.55518984]
[1771001183656,0.56180066,2065.4,2064.5,0.55518984]
[1771001183955,0.56180066,2065.6,2064.5,0.55518984]
[1771001184656,0.56180066,2065.6,2064.7,0.55518984]
[1771001189848,0.56180066,2065.6,2064.6,0.55518984]
[1771001193559,0.58180066,2065.6,2064.6,0.55518984]
[1771001193755,0.58180066,2065.6,2064.4,2.80512707]
[1771001193958,0.58180066,2065.6,2064.3,7.37316358]
[1771001194159,0.58180066,2065.6,2064.4,0.54703651]
[1771001194354,0.54083097,2065.4,2064.2,0.54703651]
[1771001194754,0.24227,2065.1,2063.8,3.35721526]
[1771001194953,0.54083097,2064.9,2063.8,0.55208819]
[1771001195159,0.54083097,2064.9,2063.8,0.00505168]
[1771001195554,0.54083097,2064.9,2063.8,0.55208819]
[1771001196162,0.54083097,2064.9,2063.9,0.54703651]
[1771001196362,0.54083097,2064.9,2064.0,0.54703651]
[1771001196556,0.54083097,2064.9,2064.1,0.58539176]
[1771001197560,0.52925294,2065.1,2064.2,0.58539176]
[1771001198554,0.52925294,2065.5,2064.2,0.58539176]
[1771001198759,0.52925294,2065.5,2064.3,0.58539176]
[1771001199857,0.52925294,2065.3,2064.3,0.58539176]
[1771001201961,0.52925294,2065.1,2063.9,3.39051883]
[1771001202265,0.52925294,2065.1,2064.0,0.58539176]
[1771001203363,0.52925294,2065.1,2063.8,2.81017875]
[1771001203364,0.52925294,2064.9,2063.8,0.59044344]
[1771001203559,0.77156294,2064.8,2063.8,0.00505168]
[1771001203767,0.52925294,2064.2,2063.1,2.80512707]
[1771001203959,0.52925294,2064.1,2063.1,0.58539176]
[1771001204363,0.52925294,2064.3,2063.2,0.58539176]
[1771001204564,0.52925294,2064.3,2063.3,0.58539176]
[1771001204761,0.53489669,2064.3,2063.3,0.58884604]
[1771001204961,0.53489669,2064.3,2063.4,0.58539176]
[1771001205156,0.53489669,2064.3,2063.5,0.58539176]
[1771001207366,0.53489669,2064.3,2063.3,0.58884604]
[1771001208664,0.53489669,2064.3,2063.3,0.00345428]
[1771001210071,0.52925294,2064.2,2063.3,0.00345428]
[1771001210266,0.52925294,2064.2,2062.8,0.58539176]
[1771001211471,0.52925294,2064.2,2062.8,0.59097941]
[1771001212666,0.52925294,2063.9,2062.8,0.59097941]
[1771001212862,0.52925294,2063.8,2062.8,0.59097941]
[1771001213569,0.52925294,2063.6,2062.8,0.00558765]
[1771001213773,0.52925294,2063.3,2062.1,0.58539176]
[1771001214271,0.52925294,2063.3,2062.3,0.58539176]
[1771001214575,0.52925294,2063.7,2062.3,0.58539176]
[1771001214776,0.52925294,2063.7,2062.3,0.59068152]
[1771001217969,0.52925294,2063.6,2062.3,0.59068152]
[1771001218278,0.52925294,2063.3,2062.3,0.00528976]
[1771001218477,0.52925294,2063.3,2062.1,0.58539176]
[1771001219477,0.52925294,2063.3,2062.1,0.58881641]
[1771001219667,0.77174294,2063.3,2062.1,0.58881641]
[1771001219869,0.52925294,2063.0,2062.1,0.58881641]
[1771001220872,0.58208007,2063.2,2062.2,0.57013228]
[1771001221878,0.58208007,2063.4,2062.4,0.57013228]
[1771001222378,0.58208007,2063.4,2062.6,0.57013228]
[1771001222580,0.58208007,2063.7,2062.6,0.57013228]
[1771001225076,0.58208007,2063.7,2062.8,0.57013228]
[1771001225576,0.58208007,2064.2,2062.8,0.57013228]
[1771001226683,0.58208007,2064.2,2063.0,0.57013228]
[1771001228173,0.58208007,2063.7,2062.6,0.57013228]
[1771001228570,0.58208007,2063.6,2062.6,0.57013228]
[1771001228978,0.58208007,2063.6,2062.3,0.57013228]
[1771001229778,0.24242,2063.8,2062.3,0.57013228]
[1771001229779,0.58208007,2063.4,2062.3,0.57013228]
[1771001231686,0.58208007,2063.3,2062.1,0.00342465]
[1771001232580,0.58208007,2063.1,2062.1,0.57355693]
[1771001233685,0.58208007,2063.1,2062.1,0.00342465]
[1771001233877,0.58208007,2063.1,2062.1,0.07355693]
[1771001234782,0.58208007,2063.1,2062.1,0.07851127]
[1771001237581,0.58208007,2063.1,2062.1,0.00495434]
[1771001238382,0.58208007,2063.1,2062.1,0.44639235]
[1771001239084,0.58208007,2063.1,2062.1,0.00495434]
[1771001239286,0.58208007,2062.9,2062.1,0.00495434]
[1771001239482,0.58208007,2062.9,2061.6,4.19021156]
[1771001239483,0.58208007,2062.7,2061.4,3.24800612]
[1771001239982,0.58208007,2062.7,2061.4,0.42544366]
[1771001240486,0.58804154,2062.7,2061.4,0.43045203]
[1771001241786,0.58208007,2062.5,2061.5,0.42576385]
[1771001242482,0.58208007,2062.5,2061.4,0.00500837]
[1771001248487,0.58208007,2062.5,2061.4,0.40168352]
[1771001249084,0.58208007,2062.3,2061.1,0.39667515]
[1771001250189,0.58208007,2062.3,2061.1,0.40202906]